bitfinex/quotes_SOLUSD_20240726
["timestamp","ask_amount","ask_price","bid_price","bid_amount"]
[1722009351128,5.4957,181.96,181.94,13.09]
[1722009351734,16.2584,181.99,181.94,13.09]
[1722009351735,5.496,181.95,181.94,13.09]
[1722009351944,5.496,181.95,181.93,13.09]
[1722009355133,5.4956,181.97,181.93,13.09]
[1722009355336,16.2584,181.99,181.95,13.09]
[1722009355662,5.4955,181.97,181.95,13.09]
[1722009356233,5.4957,181.96,181.95,13.09]
[1722009356535,5.4957,181.96,181.94,13.09]
[1722009358267,5.4957,181.96,181.93,13.09]
[1722009359651,13.09,181.98,181.88,2.23192177]
[1722009359861,14.46420643,181.97,181.92,13.09]
[1722009360063,13.09,181.97,181.91,13.09]
[1722009360261,5.496,181.95,181.91,13.09]
[1722009360766,5.496,181.95,181.92,13.09]
[1722009361597,6.87050549,181.94,181.91,13.09]
[1722009361744,1.37420549,181.94,181.91,13.09]
[1722009362367,5.496,181.95,181.91,13.09]
[1722009362662,13.09,181.96,181.91,13.09]
[1722009362663,5.4957,181.96,181.91,13.09]
[1722009362837,5.4957,181.96,181.92,13.09]
[1722009363764,5.496,181.95,181.92,13.09]
[1722009364547,16.2584,181.99,181.93,13.09]
[1722009364759,5.4955,181.97,181.93,13.09]
[1722009365569,5.4958,181.96,181.93,13.09]
[1722009368655,5.4954,181.97,181.93,13.09]
[1722009369111,5.4954,181.97,181.94,13.09]
[1722009369468,5.4954,181.97,181.95,13.09]
[1722009370198,21.7534,181.99,181.95,13.09]
[1722009370682,5.495,181.99,181.96,13.09]
[1722009371359,5.4951,181.98,181.96,13.09]
[1722009371765,5.495,181.99,181.96,13.09]
[1722009371974,5.495,181.99,181.97,13.09]
[1722009372387,5.495,181.99,181.96,13.09]
[1722009372978,5.4952,181.98,181.96,13.09]
[1722009373291,5.4952,181.98,181.95,13.09]
[1722009374791,5.4948,181.99,181.96,13.09]
[1722009376696,1.37393905,181.98,181.96,13.09]
[1722009376862,6.86903905,181.98,181.95,13.09]
[1722009377492,1.37393905,181.98,181.95,13.09]
[1722009377785,5.4952,181.98,181.91,5.4971]
[1722009377987,5.4952,181.98,181.94,13.09]
[1722009378165,5.4954,181.97,181.92,13.09]
[1722009378691,5.4951,181.98,181.93,13.09]
[1722009378990,5.4955,181.97,181.93,13.09]
[1722009379398,5.4951,181.98,181.93,13.09]
[1722009379585,5.4951,181.98,181.94,13.09]
[1722009379964,13.09,182.01,181.95,13.09]
[1722009380159,5.4948,181.99,181.95,13.09]
[1722009380490,13.09,181.99,181.93,13.09]
[1722009381181,5.4951,181.98,181.93,13.09]
[1722009381898,5.4948,181.99,181.95,13.09]
[1722009382080,5.4948,181.99,181.96,13.09]
[1722009382465,13.09,181.99,181.93,13.09]
[1722009382661,5.4953,181.98,181.93,13.09]
[1722009383205,5.4954,181.97,181.93,13.09]
[1722009383698,5.4954,181.97,181.9,5.4973]
[1722009383870,5.4954,181.97,181.93,13.09]
[1722009384581,18.5851,181.98,181.93,13.09]
[1722009384776,18.5859,181.96,181.91,13.09]
[1722009385090,5.4961,181.95,181.9,13.09]
[1722009385267,1.37427109,181.95,181.9,13.09]
[1722009385467,18.5857,181.96,181.91,13.09]
[1722009385667,5.496,181.95,181.91,13.09]
[1722009385868,1.37430979,181.94,181.89,13.09]
[1722009386283,14.46430979,181.94,181.81,16.6234]
[1722009386484,14.46430979,181.94,181.89,13.09]
[1722009386998,1.37446795,181.93,181.89,13.09]
[1722009387175,6.87136795,181.92,181.84,5.4992]
[1722009387371,13.09,181.91,181.86,13.09]
[1722009387685,18.5872,181.91,181.86,13.09]
[1722009387873,6.87227304,181.9,181.86,13.09]
[1722009388074,1.37468703,181.89,181.86,13.09]
[1722009388265,1.37468703,181.89,181.85,13.09]
[1722009388897,1.37468703,181.89,181.86,13.09]
[1722009389193,1.37468703,181.89,181.85,13.09]
[1722009389594,5.4979,181.89,181.81,5.4999]
[1722009389775,18.5879,181.89,181.84,13.09]
[1722009389974,5.4981,181.88,181.84,13.09]
[1722009390197,14.46485112,181.89,181.84,13.09]
[1722009390701,13.09,181.88,181.83,13.09]
[1722009390905,5.4989,181.86,181.78,5.5009]
[1722009391066,18.5886,181.87,181.81,13.09]
[1722009391369,18.5886,181.87,181.83,13.09]
[1722009391370,5.4986,181.87,181.83,13.09]
[1722009391569,5.4981,181.88,181.83,13.09]
[1722009392181,13.09,181.89,181.83,13.09]
[1722009392393,5.4984,181.87,181.83,13.09]
[1722009392774,18.5884,181.87,181.82,13.09]
[1722009392976,5.4984,181.87,181.83,13.09]
[1722009394395,18.5881,181.88,181.83,13.09]
[1722009394999,19.96352812,181.87,181.81,13.09]
[1722009395171,18.5886,181.87,181.81,13.09]
[1722009395380,5.4987,181.86,181.81,13.09]
[1722009395702,18.5887,181.86,181.81,13.09]
[1722009396204,1.37495184,181.85,181.81,13.09]
[1722009396410,19.96415184,181.85,181.8,13.09]
[1722009396581,1.37508662,181.84,181.81,13.09]
[1722009397194,1.37508662,181.84,181.8,13.09]
[1722009397600,13.09,181.86,181.8,13.09]
[1722009397601,18.5887,181.86,181.8,13.09]
[1722009397906,18.5887,181.86,181.81,13.09]
[1722009398217,5.4987,181.86,181.82,13.09]
[1722009399409,5.4993,181.85,181.81,13.09]
[1722009399593,13.09,181.86,181.82,13.09]
[1722009399594,5.4987,181.86,181.82,13.09]
[1722009399797,5.4984,181.87,181.82,13.09]
[1722009399996,13.09,181.88,181.82,13.09]
[1722009400187,20.0,181.87,181.84,13.09]
[1722009400380,16.4451,181.9,181.86,13.09]
[1722009400584,18.5865,181.94,181.89,13.09]
[1722009400801,5.4965,181.94,181.9,13.09]
[1722009401092,5.4966,181.93,181.9,13.09]
[1722009401615,5.4969,181.92,181.89,13.09]
[1722009401810,5.4969,181.92,181.88,13.09]
[1722009402308,13.09,181.91,181.81,15.4173]
[1722009402478,13.09,181.91,181.85,13.09]
[1722009402682,13.09,181.92,181.86,13.09]
[1722009402891,5.4972,181.91,181.87,13.09]
[1722009403100,5.4972,181.91,181.86,13.09]
[1722009403696,18.5872,181.91,181.86,13.09]
[1722009403897,5.4972,181.91,181.86,13.09]
[1722009405712,18.5869,181.92,181.87,13.09]
[1722009407024,5.4973,181.91,181.87,13.09]
[1722009407984,5.4973,181.91,181.86,13.09]
[1722009408587,13.09,181.91,181.86,13.09]
[1722009409999,5.4978,181.89,181.85,13.09]
[1722009410513,13.09,181.9,181.85,13.09]
[1722009410686,5.4984,181.87,181.83,13.09]
[1722009410888,18.5882,181.88,181.83,13.09]
[1722009411309,29.5791,181.89,181.84,13.09]
[1722009411615,16.4891,181.89,181.85,13.09]
[1722009412387,16.4891,181.89,181.86,13.09]
[1722009412908,5.4972,181.91,181.87,13.09]
[1722009414913,5.4975,181.9,181.87,13.09]
[1722009415112,5.4987,181.87,181.85,13.09]
[1722009415308,13.09,181.9,181.84,13.09]
[1722009415511,14.46479019,181.89,181.84,13.09]
[1722009415713,13.09,181.88,181.83,13.09]
[1722009415912,5.4988,181.86,181.82,13.09]
[1722009416415,18.5884,181.87,181.82,13.09]
[1722009416597,5.4984,181.87,181.83,13.09]
[1722009418000,18.5884,181.87,181.82,13.09]
[1722009418194,5.4987,181.86,181.82,13.09]
[1722009419601,5.4987,181.86,181.79,5.5008]
[1722009419602,5.4993,181.84,181.79,13.09]
[1722009419920,1.37516418,181.83,181.79,13.09]
[1722009420121,1.37516516,181.82,181.79,13.09]
[1722009420324,18.5891,181.85,181.79,13.09]
[1722009420824,18.5895,181.84,181.79,13.09]
[1722009421320,5.4995,181.84,181.79,13.09]
[1722009421505,1.37516387,181.83,181.79,13.09]
[1722009421711,1.37518381,181.82,181.79,13.09]
[1722009422306,18.5895,181.84,181.79,13.09]
[1722009422505,5.4996,181.83,181.79,13.09]
[1722009422713,1.37522431,181.82,181.79,13.09]
[1722009422936,1.37522431,181.82,181.78,13.09]
[1722009423219,5.5,181.82,181.75,5.5019]
[1722009423427,5.5002,181.81,181.77,13.09]
[1722009423794,5.5002,181.81,181.78,13.09]
[1722009423998,6.87531857,181.82,181.77,13.09]
[1722009424198,19.96531857,181.82,181.76,13.09]
[1722009424418,18.59,181.82,181.76,13.09]
[1722009424633,18.59,181.82,181.77,13.09]
[1722009424806,18.59,181.82,181.76,13.09]
[1722009425434,1.37535326,181.81,181.76,13.09]
[1722009425734,13.09,181.79,181.74,13.09]
[1722009425917,1.37551928,181.78,181.74,13.09]
[1722009426535,18.5906,181.8,181.74,13.09]
[1722009427219,18.5906,181.8,181.75,13.09]
[1722009428008,13.09,181.81,181.76,13.09]
[1722009428213,24.6412,181.82,181.76,13.09]
[1722009428517,20.0,181.81,181.77,13.09]
[1722009429421,1.37536301,181.8,181.74,5.5023]
[1722009429738,1.37536576,181.79,181.76,13.09]
[1722009430137,20.0,181.81,181.77,13.09]
[1722009433129,5.4995,181.84,181.8,13.09]
[1722009433328,5.4991,181.85,181.81,13.09]
[1722009433528,21.84,181.86,181.81,13.09]
[1722009433836,21.84,181.86,181.82,13.09]
[1722009434173,15.5927,181.86,181.84,13.09]
[1722009435247,5.4981,181.88,181.84,13.09]
[1722009435658,5.4985,181.87,181.84,13.09]
[1722009435823,5.4985,181.87,181.82,13.09]
[1722009436248,5.4988,181.86,181.82,13.09]
[1722009436830,5.4984,181.87,181.82,13.09]
[1722009437030,5.4984,181.87,181.83,13.09]
[1722009438556,5.4988,181.86,181.83,13.09]
[1722009438932,5.4984,181.87,181.83,13.09]
[1722009439458,5.4987,181.86,181.83,13.09]
[1722009440226,5.4985,181.87,181.83,13.09]
[1722009441166,5.4987,181.86,181.83,13.09]
[1722009441353,5.4987,181.86,181.82,13.09]
[1722009443766,18.5885,181.87,181.82,13.09]
[1722009445744,6.87374973,181.86,181.81,13.09]
[1722009445962,1.37498911,181.85,181.81,13.09]
[1722009446265,5.4988,181.86,181.81,13.09]
[1722009446564,1.37498955,181.85,181.81,13.09]
[1722009446769,1.37498955,181.85,181.8,13.09]
[1722009447066,1.37498955,181.85,181.81,13.09]
[1722009447272,22.33,181.9,181.83,13.09]
[1722009447562,20.0,181.89,181.85,13.09]
[1722009447770,16.0644,181.9,181.86,13.09]
[1722009447941,13.09,181.93,181.88,13.09]
[1722009448374,1.37448777,181.92,181.88,13.09]
[1722009448546,1.37448777,181.92,181.87,13.09]
[1722009449271,21.37448777,181.92,181.87,13.09]
[1722009449762,33.09,181.92,181.86,13.09]
[1722009449971,5.4977,181.9,181.85,13.09]
[1722009450141,18.5877,181.9,181.85,13.09]
[1722009451266,21.37473945,181.92,181.86,13.09]
[1722009451267,33.09,181.92,181.86,13.09]
[1722009451695,38.5871,181.92,181.86,13.09]
[1722009451873,38.5871,181.92,181.85,13.09]
[1722009451874,18.5876,181.9,181.85,13.09]
[1722009452550,5.4979,181.89,181.85,13.09]
[1722009452748,5.4979,181.89,181.84,13.09]
[1722009452958,18.5879,181.89,181.84,13.09]
[1722009453157,13.09,181.87,181.82,13.09]
[1722009453377,35.1177388,181.92,181.81,13.09]
[1722009453378,18.5889,181.86,181.81,13.09]
[1722009453677,13.09,181.85,181.8,13.09]
[1722009453881,13.09,181.85,181.75,15.8952]
[1722009453882,13.09,181.84,181.79,13.09]
[1722009454255,5.4996,181.83,181.79,13.09]
[1722009454578,18.5896,181.83,181.78,13.09]
[1722009455243,18.5894,181.84,181.79,13.09]
[1722009455870,13.09,181.84,181.79,13.09]
[1722009456078,5.4999,181.82,181.75,5.502]
[1722009456249,5.4999,181.82,181.77,13.09]
[1722009456666,18.5899,181.82,181.77,13.09]
[1722009456868,5.4999,181.82,181.77,13.09]
[1722009457473,5.5003,181.81,181.77,13.09]
[1722009459883,1.37538121,181.86,181.78,13.09]
[1722009460179,5.5001,181.82,181.78,13.09]
[1722009460566,5.5001,181.82,181.77,13.09]
[1722009461065,13.09,181.83,181.77,13.09]
[1722009461277,5.5002,181.81,181.77,13.09]
[1722009461475,5.5005,181.8,181.76,13.09]
[1722009461867,5.5005,181.8,181.77,13.09]
[1722009462371,5.5008,181.79,181.77,13.09]
[1722009462676,13.09,181.8,181.75,13.09]
[1722009462867,5.5009,181.79,181.74,13.09]
[1722009463858,5.5009,181.79,181.75,13.09]
[1722009464059,5.5009,181.79,181.76,13.09]
[1722009464279,5.5005,181.8,181.76,13.09]
[1722009464474,16.5928,181.81,181.76,13.09]
[1722009464965,16.5928,181.81,181.78,13.09]
[1722009465669,22.093,181.81,181.78,13.09]
[1722009465868,5.5006,181.8,181.76,13.09]
[1722009466259,5.5006,181.8,181.75,13.09]
[1722009466260,5.5013,181.78,181.75,13.09]
[1722009466491,5.5009,181.79,181.75,13.09]
[1722009469083,18.5909,181.79,181.74,13.09]
[1722009469383,5.5016,181.77,181.74,13.09]
[1722009471987,6.0919,181.8,181.76,13.09]
[1722009472872,19.1819,181.8,181.75,13.09]
[1722009473071,5.5013,181.78,181.74,13.09]
[1722009473973,5.5008,181.79,181.75,13.09]
[1722009474688,24.6825,181.8,181.75,13.09]
[1722009474895,5.5009,181.79,181.71,5.5029]
[1722009475388,5.5011,181.78,181.67,1.10040032]
[1722009475585,5.5014,181.77,181.68,0.17]
[1722009476391,5.5012,181.78,181.71,5.5032]
[1722009476996,5.5012,181.78,181.72,1.10046002]
[1722009478174,5.5012,181.78,181.71,5.5032]
[1722009479094,5.5012,181.78,181.72,1.10048304]
[1722009479976,5.5012,181.78,181.71,5.5032]
[1722009480177,5.5014,181.77,181.7,5.5034]
[1722009480496,1.37558981,181.76,181.7,5.5034]
[1722009480692,5.5014,181.77,181.7,5.5034]
[1722009480870,5.5014,181.77,181.71,1.10048368]
[1722009481709,5.5014,181.77,181.71,6.60368368]
[1722009481992,5.5014,181.77,181.72,1.10048329]
[1722009482196,5.5014,181.77,181.71,5.5032]
[1722009482772,5.5012,181.78,181.71,5.5032]
[1722009483173,5.5014,181.77,181.7,5.5035]
[1722009484204,5.5011,181.78,181.71,6.60368171]
[1722009484402,5.5011,181.78,181.71,5.5032]
[1722009485578,5.5011,181.78,181.72,1.10048117]
[1722009486203,5.5011,181.78,181.71,5.5032]
[1722009486794,5.5011,181.78,181.72,1.10048123]
[1722009487310,5.5011,181.78,181.7,5.5035]
[1722009487477,5.5011,181.78,181.71,1.10048074]
[1722009488893,6.0919,181.8,181.71,1.10048074]
[1722009489098,6.0919,181.8,181.68,1.27047958]
[1722009489400,5.5013,181.78,181.7,5.5032]
[1722009489597,5.5013,181.78,181.71,1.10047984]
[1722009490801,5.5013,181.78,181.71,6.60367984]
[1722009491005,5.5013,181.78,181.72,1.10047907]
[1722009491388,5.5008,181.79,181.72,6.60327907]
[1722009491594,6.0919,181.8,181.72,6.60327907]
[1722009491907,6.0919,181.8,181.72,5.5028]
[1722009492206,6.0919,181.8,181.68,1.27034187]
[1722009492413,5.5013,181.78,181.71,5.5032]
[1722009495104,5.5013,181.78,181.72,1.10042813]
[1722009495505,5.5013,181.78,181.71,5.5032]
[1722009495816,5.5009,181.79,181.72,5.5029]
[1722009496310,5.5009,181.79,181.68,1.27044245]
[1722009496311,5.5012,181.78,181.7,5.5033]
[1722009496814,5.5012,181.78,181.71,5.5032]
[1722009498112,5.5022,181.75,181.66,24.42990759]
[1722009498287,1.37575194,181.74,181.67,5.5044]
[1722009498613,1.37575194,181.74,181.68,5.5041]
[1722009498822,1.37575194,181.74,181.66,22.2505]
[1722009499190,5.5023,181.75,181.66,22.2505]
[1722009499517,1.37575184,181.74,181.67,5.5041]
[1722009499692,1.37575184,181.74,181.68,5.504]
[1722009501208,6.87805184,181.74,181.67,5.5044]
[1722009501729,1.37575184,181.74,181.67,5.5044]
[1722009501899,1.37575184,181.74,181.68,5.504]
[1722009502826,20.9395,181.75,181.65,0.7916266]
[1722009502827,15.4374,181.75,181.7,5.5035]
[1722009503122,15.4374,181.75,181.69,5.5038]
[1722009503508,15.4374,181.75,181.7,5.5033]
[1722009503820,15.4374,181.75,181.71,1.10052034]
[1722009504319,16.4558,181.79,181.66,1.10048678]
[1722009504517,16.4558,181.79,181.72,5.5028]
[1722009506724,21.9567,181.79,181.72,5.5028]
[1722009508427,17.83122521,181.79,181.67,0.34]
[1722009508606,16.4558,181.79,181.67,0.17]
[1722009508927,5.5017,181.77,181.7,5.5034]
[1722009509121,5.5017,181.77,181.71,1.10042702]
[1722009509312,5.5017,181.77,181.7,5.5034]
[1722009512228,5.5011,181.78,181.71,5.5032]
[1722009512528,6.87663809,181.78,181.71,5.5032]
[1722009512713,6.87693911,181.77,181.67,0.17]
[1722009512914,5.5014,181.77,181.67,0.34]
[1722009513108,5.5014,181.77,181.68,1.10042891]
[1722009513303,5.5014,181.77,181.67,0.34]
[1722009514023,5.5014,181.77,181.7,5.5034]
[1722009514237,1.3755383,181.76,181.7,5.5034]
[1722009514528,6.87693829,181.77,181.7,5.5034]
[1722009514830,1.3755391,181.76,181.7,5.5034]
[1722009515221,6.87693805,181.77,181.7,5.5034]
[1722009515428,1.37553805,181.77,181.71,5.5032]
[1722009515728,5.5011,181.78,181.71,5.5032]
[1722009517117,1.37553768,181.77,181.71,5.5032]
[1722009517338,5.5011,181.78,181.71,5.5032]
[1722009517629,21.9566,181.79,181.72,5.5029]
[1722009518627,21.9566,181.79,181.71,5.5032]
[1722009518929,6.87667677,181.78,181.71,5.5032]
[1722009519117,5.5014,181.77,181.7,5.5035]
[1722009519313,1.37547677,181.78,181.68,5.5039]
[1722009519519,6.87739903,181.76,181.69,5.5038]
[1722009520128,1.37549903,181.76,181.68,5.5041]
[1722009520732,20.0,181.78,181.68,5.5041]
[1722009521122,5.5021,181.75,181.68,5.5041]
[1722009521635,20.0,181.78,181.69,5.5037]
[1722009521830,20.0,181.78,181.7,1.10053711]
[1722009523027,5.5018,181.76,181.7,1.10053711]
[1722009523232,5.5021,181.75,181.67,5.5041]
[1722009523533,1.37574787,181.74,181.67,5.5041]
[1722009523713,5.5021,181.75,181.67,5.5041]
[1722009525215,5.5021,181.75,181.68,5.504]
[1722009527136,20.0,181.78,181.69,1.10059806]
[1722009528043,5.5014,181.77,181.7,5.5035]
[1722009528740,5.5017,181.76,181.69,5.5038]
[1722009529837,5.5017,181.76,181.7,1.10048488]
[1722009530041,5.5017,181.76,181.69,5.5038]
[1722009530235,20.0,181.78,181.65,0.7916266]
[1722009530445,16.4558,181.79,181.67,21.22]
[1722009530620,5.4998,181.83,181.68,46.44027082]
[1722009530819,15.7433,181.84,181.68,46.44027082]
[1722009530820,15.7433,181.84,181.78,5.5011]
[1722009531019,21.2427,181.84,181.77,5.5013]
[1722009531221,15.7433,181.84,181.79,5.5005]
[1722009531619,15.1742,181.89,181.8,1.09994467]
[1722009531825,15.1742,181.89,181.82,5.4998]
[1722009532021,20.6721,181.89,181.83,1.09972403]
[1722009532339,20.6721,181.89,181.79,0.17]
[1722009532340,15.1742,181.89,181.79,0.17]
[1722009532553,22.04670725,181.89,181.81,5.5002]
[1722009532844,5.4982,181.88,181.8,5.5005]
[1722009533046,15.1742,181.89,181.79,1.09970363]
[1722009533222,15.1742,181.89,181.75,15.9961]
[1722009533223,15.1742,181.89,181.8,1.09989994]
[1722009533543,1.37480594,181.88,181.75,17.09594475]
[1722009533753,5.499,181.86,181.76,45.34]
[1722009533922,5.499,181.86,181.77,1.09989089]
[1722009534122,5.4984,181.87,181.79,5.5007]
[1722009534426,5.4984,181.87,181.8,1.09988664]
[1722009534825,20.0,181.88,181.8,1.09988664]
[1722009535050,25.4981,181.88,181.8,1.09988664]
[1722009535343,25.4981,181.88,181.8,5.5005]
[1722009535344,5.4984,181.87,181.8,5.5005]
[1722009535555,5.4984,181.87,181.77,1.09988781]
[1722009536758,5.4984,181.87,181.8,5.5005]
[1722009537548,20.0,181.88,181.8,5.5005]
[1722009537753,15.1742,181.89,181.84,5.4992]
[1722009537927,15.1742,181.89,181.85,1.09965739]
[1722009538132,20.6723,181.89,181.77,1.09965509]
[1722009538462,15.1742,181.89,181.82,5.4999]
[1722009538753,15.1742,181.89,181.83,1.09968378]
[1722009538947,15.1742,181.89,181.83,6.59908378]
[1722009539156,15.1742,181.89,181.84,1.09964142]
[1722009539374,15.588,181.93,181.84,1.09964142]
[1722009539529,15.588,181.93,181.87,5.4984]
[1722009539731,15.588,181.93,181.88,1.09949697]
[1722009539932,15.588,181.93,181.87,5.4984]
[1722009540159,15.588,181.93,181.86,5.4987]
[1722009540328,15.588,181.93,181.81,21.8396]
[1722009540538,15.588,181.93,181.82,45.34]
[1722009540847,15.588,181.93,181.86,5.4984]
[1722009541443,15.588,181.93,181.84,1.09941746]
[1722009541645,15.588,181.93,181.85,0.34]
[1722009541967,21.1085,181.97,181.88,5.4978]
[1722009542164,21.1085,181.97,181.9,5.4973]
[1722009542339,5.4957,181.96,181.89,5.4977]
[1722009542683,15.6128,181.97,181.91,5.4971]
[1722009543145,15.6128,181.97,181.92,1.09922403]
[1722009544245,15.6128,181.97,181.91,5.4971]
[1722009544446,15.6128,181.97,181.92,1.09922431]
[1722009544756,15.6128,181.97,181.93,1.09922382]
[1722009545534,15.6128,181.97,181.91,5.4971]
[1722009545743,21.1082,181.97,181.9,5.4974]
[1722009546840,15.6128,181.97,181.88,1.09917734]
[1722009547143,6.86974653,181.96,181.87,0.17]
[1722009547445,21.1082,181.97,181.86,1.26923734]
[1722009547659,15.6128,181.97,181.87,0.17]
[1722009547837,15.6128,181.97,181.85,2.22357916]
[1722009548156,5.4963,181.95,181.88,5.4981]
[1722009548350,15.6128,181.97,181.89,6.59709072]
[1722009548557,21.1082,181.97,181.9,1.09927236]
[1722009548759,21.1082,181.97,181.9,5.4973]
[1722009549060,15.6128,181.97,181.83,1.09927249]
[1722009549279,15.6128,181.97,181.84,0.34]
[1722009549460,15.6128,181.97,181.85,1.09923779]
[1722009549663,16.98684724,181.97,181.89,5.4975]
[1722009549846,15.6128,181.97,181.89,5.4975]
[1722009550040,5.4958,181.96,181.89,5.4975]
[1722009550657,22.48224931,181.97,181.89,5.4975]
[1722009551046,5.4959,181.96,181.89,5.4975]
[1722009551250,22.48224931,181.97,181.9,5.4974]
[1722009551769,21.1082,181.97,181.9,5.4974]
[1722009552461,21.1082,181.97,181.91,1.09927308]
[1722009552672,15.6128,181.97,181.91,6.59637308]
[1722009552865,21.1082,181.97,181.89,5.4975]
[1722009553162,21.1082,181.97,181.9,1.09927403]
[1722009553363,5.4958,181.96,181.9,1.09927403]
[1722009553565,5.4958,181.96,181.89,5.4975]
[1722009553863,15.6128,181.97,181.86,1.43927529]
[1722009554157,5.496,181.95,181.87,5.4983]
[1722009554363,5.496,181.95,181.88,0.17]
[1722009554941,5.496,181.95,181.88,5.668]
[1722009555168,5.4957,181.96,181.89,5.4978]
[1722009556469,5.496,181.95,181.88,5.668]
[1722009556843,5.4957,181.96,181.89,5.4977]
[1722009557850,5.4957,181.96,181.88,5.498]
[1722009558153,16.98704133,181.97,181.87,5.4983]
[1722009558459,15.6128,181.97,181.88,5.498]
[1722009558647,5.4959,181.96,181.88,5.498]
[1722009558847,5.496,181.95,181.88,5.498]
[1722009559048,5.496,181.95,181.89,1.09939088]
[1722009559269,5.496,181.95,181.88,5.498]
[1722009560252,15.6128,181.97,181.84,1.09939172]
[1722009560458,15.6128,181.97,181.85,0.34]
[1722009561060,16.98703939,181.97,181.85,0.34]
[1722009561951,5.496,181.95,181.88,5.4978]
[1722009562158,5.4957,181.96,181.89,5.4976]
[1722009562952,21.1082,181.97,181.9,5.4974]
[1722009563360,5.4957,181.96,181.89,5.4978]
[1722009563557,5.496,181.95,181.89,5.4978]
[1722009563768,5.496,181.95,181.88,5.498]
[1722009565568,5.4957,181.96,181.89,5.4978]
[1722009565957,5.496,181.95,181.88,5.498]
[1722009566868,5.496,181.95,181.89,5.4978]
[1722009567050,5.4957,181.96,181.89,5.4978]
[1722009567250,15.6128,181.97,181.9,1.0993927]
[1722009567450,15.6128,181.97,181.85,0.34]
[1722009567451,15.6128,181.97,181.91,5.4971]
[1722009567671,21.1082,181.97,181.9,5.4974]
[1722009568051,21.1082,181.97,181.91,1.09927707]
[1722009568252,15.6128,181.97,181.91,6.59647707]
[1722009568574,15.6128,181.97,181.92,1.09926908]
[1722009568773,21.1082,181.97,181.92,1.09925331]
[1722009568950,21.1082,181.97,181.91,1.09926674]
[1722009569776,5.4957,181.96,181.91,1.09926674]
[1722009569957,5.4957,181.96,181.9,1.09927827]
[1722009571158,15.6128,181.97,181.9,1.09927827]
[1722009571363,15.6128,181.97,181.85,1.43919467]
[1722009571658,15.6128,181.97,181.86,1.09920049]
[1722009571856,15.6128,181.97,181.87,16.1321]
[1722009572074,15.6128,181.97,181.93,5.4965]
[1722009572258,15.6128,181.97,181.92,5.4969]
[1722009572457,15.6128,181.97,181.91,5.4971]
[1722009572665,15.6128,181.97,181.91,6.59622333]
[1722009573654,15.6128,181.97,181.92,1.09912253]
[1722009573856,15.6128,181.97,181.93,1.09912256]
[1722009574578,15.6128,181.97,181.91,5.4971]
[1722009575172,15.6128,181.97,181.92,6.76586244]
[1722009575377,15.6128,181.97,181.93,5.4964]
[1722009575675,15.6128,181.97,181.92,5.4968]
[1722009575893,15.6128,181.97,181.91,5.4971]
[1722009576956,15.6128,181.97,181.92,5.4968]
[1722009577585,15.6128,181.97,181.93,6.59562498]
[1722009577791,15.6128,181.97,181.94,1.09907549]
[1722009578091,15.6128,181.97,181.94,6.59517549]
[1722009578265,15.6128,181.97,181.95,1.09905147]
[1722009578983,16.055,182.01,181.95,1.09905147]